bitfinex-derivatives/quotes_ETHF0:USTF0_20250112
["timestamp","ask_amount","ask_price","bid_price","bid_amount"]
[1736677133325,1.09983413,3247.3,3247.2,41.01566]
[1736677133833,1.09983413,3247.3,3247.2,43.18274034]
[1736677135536,0.9469,3247.3,3247.2,43.18274034]
[1736677138034,0.4667,3247.3,3247.2,43.18274034]
[1736677138233,0.4667,3247.3,3247.2,41.01566]
[1736677138938,0.21566,3247.2,3246.8,0.4577]
[1736677139129,3.2078,3247.1,3247.0,0.21567]
[1736677139333,3.2078,3247.1,3247.0,2.38275034]
[1736677139530,3.2078,3247.1,3247.0,43.18275034]
[1736677140028,0.61857668,3247.3,3247.0,43.18275034]
[1736677140029,0.61857668,3247.3,3247.2,0.21566]
[1736677142129,0.61857668,3247.3,3247.0,42.96708034]
[1736677142326,3.2078,3247.1,3246.0,8.04539131]
[1736677142531,3.2078,3246.7,3246.1,2.16708034]
[1736677142733,0.21573,3246.3,3246.1,2.38281034]
[1736677143032,0.4554,3246.2,3246.0,4.83759131]
[1736677143240,0.21574,3246.1,3245.6,2.16708034]
[1736677143433,1.12155,3246.0,3245.7,0.21576]
[1736677143637,0.9058,3246.0,3245.8,0.21576]
[1736677143940,1.12154,3246.0,3245.7,0.21576]
[1736677144241,0.9058,3246.0,3245.8,0.21576]
[1736677144542,0.9058,3246.0,3245.9,0.21575]
[1736677146131,0.9058,3246.0,3245.8,0.21575]
[1736677146440,3.2078,3245.9,3245.7,1.10516]
[1736677146736,3.2078,3245.9,3245.8,0.21576]
[1736677148141,3.2078,3246.3,3246.2,0.21573]
[1736677150447,0.8941,3246.6,3246.5,0.21571]
[1736677153246,1.0447938,3246.6,3246.5,0.21571]
[1736677154349,1.2605038,3246.6,3246.3,0.21572]
[1736677154750,0.21571,3246.5,3246.1,2.16708034]
[1736677154946,3.42351,3246.5,3246.2,0.21573]
[1736677155758,3.42351,3246.5,3246.1,2.16708034]
[1736677155961,3.42351,3246.5,3246.3,0.21572]
[1736677156657,3.2078,3246.5,3246.2,0.21573]
[1736677156861,3.2078,3246.5,3246.3,0.21572]
[1736677157355,3.42351,3246.5,3246.3,0.21572]
[1736677157554,3.2078,3246.5,3246.3,0.21572]
[1736677158056,3.2078,3246.5,3246.1,2.16708034]
[1736677158360,3.2078,3246.5,3246.3,0.21572]
[1736677160459,3.88451,3246.5,3246.3,0.21572]
[1736677160651,3.6688,3246.5,3246.3,0.21572]
[1736677161054,3.2078,3246.5,3246.4,0.21572]
[1736677161260,0.1506938,3246.6,3246.4,2.16708034]
[1736677161448,0.1506938,3246.6,3246.5,0.65871]
[1736677161652,0.1506938,3246.6,3246.5,1.12021]
[1736677161864,0.1506938,3246.6,3246.5,41.92021]
[1736677162060,0.4384,3246.8,3246.5,41.7045]
[1736677162260,0.4384,3246.8,3246.7,2.38278034]
[1736677162661,3.2078,3247.0,3246.9,0.21568]
[1736677163057,3.2078,3247.8,3247.3,0.21566]
[1736677163252,0.93749261,3248.0,3247.3,0.21566]
[1736677163253,0.45176333,3248.0,3247.7,2.16708034]
[1736677163558,0.2156,3248.1,3247.8,0.21562]
[1736677163860,4.1569,3248.2,3247.7,2.16708034]
[1736677163861,0.21561,3248.0,3247.7,0.21563]
[1736677164161,4.1569,3248.2,3247.4,40.8]
[1736677164162,3.2078,3247.8,3247.4,40.8]
[1736677164364,0.21564,3247.6,3247.3,0.21566]
[1736677164663,0.21564,3247.6,3247.2,1.224]
[1736677164664,0.9491,3247.5,3247.2,1.224]
[1736677164866,3.42345,3247.4,3247.2,1.43966]
[1736677165462,3.42345,3247.4,3247.3,0.21566]
[1736677165655,3.2078,3247.4,3247.3,0.21566]
[1736677166055,3.42345,3247.4,3247.3,0.21566]
[1736677166864,3.2078,3247.4,3247.3,0.21566]
[1736677167257,0.9491,3247.5,3247.4,0.21565]
[1736677167458,0.9491,3247.5,3247.4,2.38273034]
[1736677168967,1.10529796,3247.5,3247.4,2.38273034]
[1736677175982,1.10529796,3247.5,3247.2,1.224]
[1736677176182,3.2078,3247.4,3247.1,0.21567]
[1736677176381,0.21566,3247.3,3247.1,0.21567]
[1736677176883,0.4711,3247.2,3247.1,0.21567]
[1736677177279,0.4711,3247.2,3247.1,2.38275034]
[1736677177487,3.2078,3247.4,3247.3,0.21566]
[1736677177682,1.10529796,3247.5,3247.2,0.4359]
[1736677177889,1.10529796,3247.5,3247.4,0.21565]
[1736677178078,1.10529796,3247.5,3247.4,2.38273034]
[1736677180487,0.9491,3247.5,3247.4,2.38273034]
[1736677182787,1.16474,3247.5,3247.4,2.38273034]
[1736677183187,0.9491,3247.5,3247.4,2.38273034]
[1736677183783,1.16474,3247.5,3247.4,0.21565]
[1736677184288,1.31863641,3247.5,3247.4,0.21565]
[1736677184797,1.10299641,3247.5,3247.2,1.227]
[1736677184996,3.42345,3247.4,3247.2,1.44266]
[1736677185685,0.21566,3247.3,3247.2,0.21566]
[1736677185892,0.21566,3247.3,3247.1,2.16708034]
[1736677186088,0.4609,3247.2,3247.1,2.38275034]
[1736677186787,0.67656,3247.2,3247.1,2.16708034]
[1736677186987,0.4609,3247.2,3246.9,0.21568]
[1736677187301,0.4609,3247.2,3246.8,2.16708034]
[1736677187499,0.21568,3247.0,3246.9,0.21568]
[1736677187796,0.4609,3247.2,3246.7,3.2078]
[1736677187999,0.69259,3246.9,3246.7,0.21569]
[1736677188298,0.2157,3246.7,3246.6,0.2157]
[1736677188695,0.6596,3246.7,3246.5,0.21571]
[1736677189497,0.4439,3246.7,3246.4,2.16708034]
[1736677189800,0.4439,3246.7,3246.5,0.21571]
[1736677190299,0.4439,3246.7,3246.5,0.2157]
[1736677190498,0.4439,3246.7,3246.4,2.16708034]
[1736677190797,0.4439,3246.7,3246.6,0.2157]
[1736677191695,0.21571,3246.6,3246.4,2.16708034]
[1736677191896,0.21571,3246.6,3246.4,2.38280034]
[1736677192397,0.4439,3246.7,3246.5,0.21571]
[1736677192593,0.6596,3246.7,3246.4,2.38279034]
[1736677192996,0.6596,3246.7,3246.4,2.16708034]
[1736677193198,0.6596,3246.7,3246.5,0.21571]
[1736677195896,0.4439,3246.7,3246.6,0.2157]
[1736677196297,0.4769,3246.9,3246.8,0.21569]
[1736677197101,0.945,3246.9,3246.8,0.21569]
[1736677198296,1.10230357,3246.9,3246.8,0.21569]
[1736677198606,1.31798357,3246.9,3246.8,0.21569]
[1736677200402,1.10230357,3246.9,3246.7,2.16708034]
[1736677200606,1.10230357,3246.9,3246.5,0.4497]
[1736677200807,0.2157,3246.7,3246.6,0.2157]
[1736677201701,0.4809,3246.8,3246.4,2.16708034]
[1736677201913,0.4809,3246.8,3246.1,2.16708034]
[1736677202118,0.21573,3246.3,3246.2,0.21573]
[1736677203216,0.21573,3246.3,3246.1,2.38281034]
[1736677203511,0.4809,3246.8,3246.2,0.21573]
[1736677203715,0.21572,3246.4,3246.3,0.21572]
[1736677203919,0.21572,3246.4,3246.2,0.21572]
[1736677204112,0.927,3246.3,3246.2,0.21572]
[1736677206213,1.14272,3246.3,3246.2,0.21572]
[1736677206512,0.927,3246.3,3246.1,2.16708034]
[1736677206816,0.21575,3245.9,3245.7,0.21576]
[1736677207010,0.9236,3245.8,3245.7,0.21576]
[1736677207216,1.13936,3245.8,3245.7,40.8]
[1736677207415,0.9236,3245.8,3245.7,0.21576]
[1736677213126,0.9236,3245.8,3245.5,2.16708034]
[1736677213423,0.4702,3245.7,3245.6,0.21576]
[1736677221833,0.9236,3245.8,3245.7,0.21576]
[1736677224535,1.13936,3245.8,3245.7,0.21576]
[1736677224735,0.9236,3245.8,3245.7,0.21576]
[1736677225934,1.07724544,3245.8,3245.7,0.21576]
[1736677227538,1.07724544,3245.8,3245.3,4.9123]
[1736677227834,1.29300544,3245.8,3245.4,0.21578]
[1736677228035,1.29300544,3245.8,3245.6,0.21577]
[1736677229037,0.21577,3245.7,3245.5,0.21577]
[1736677229237,3.42357,3245.7,3245.5,0.21577]
[1736677231341,0.21577,3245.6,3245.5,0.21577]
[1736677231542,3.42357,3245.7,3245.5,0.21578]
[1736677231740,3.2078,3245.7,3245.6,0.21577]
[1736677232741,3.2078,3245.7,3245.3,4.4318]
[1736677233044,3.2078,3245.7,3245.4,2.16708034]
[1736677233243,3.2078,3245.7,3245.6,0.21577]
[1736677235742,3.2078,3245.7,3244.9,3.2078]
[1736677235946,3.42359,3245.3,3244.9,0.21582]
[1736677236146,3.42359,3245.3,3245.1,0.2158]
[1736677236147,0.9213,3245.2,3245.1,0.2158]
[1736677236445,0.21581,3245.1,3244.9,1.08891]
[1736677236844,1.3963,3245.2,3244.9,0.8731]
[1736677237043,0.21581,3245.1,3244.9,1.08891]
[1736677237238,1.3963,3245.2,3244.9,1.08891]
[1736677237548,0.2158,3245.1,3244.9,1.08891]
[1736677238748,0.2158,3245.1,3245.0,0.21581]
[1736677238938,0.2158,3245.1,3244.9,1.08891]
[1736677242340,0.2158,3245.1,3245.0,40.8]
[1736677243242,0.2158,3245.1,3244.9,1.08891]
[1736677243551,0.37077358,3245.1,3244.9,1.08891]
[1736677243847,0.21581,3245.0,3244.9,0.21581]
[1736677244746,0.15497358,3245.1,3244.9,0.21581]
[1736677244949,0.37078358,3245.1,3244.9,0.21581]
[1736677247247,0.15497358,3245.1,3244.6,41.712]
[1736677247649,0.37078358,3245.1,3244.9,0.21582]
[1736677252059,0.37078358,3245.1,3244.6,41.712]
[1736677252060,0.15497358,3245.1,3244.6,41.712]
[1736677252254,0.15497358,3245.1,3244.9,0.21581]
[1736677252458,0.21581,3245.0,3244.8,0.21582]
[1736677252653,0.37078358,3245.1,3244.9,0.21581]
[1736677255460,0.21581,3245.1,3244.9,0.21581]
[1736677256054,0.15795285,3245.0,3244.9,0.21581]
[1736677260573,0.15795285,3245.0,3244.9,0.21582]
[1736677265772,0.15795285,3245.0,3244.6,0.912]
[1736677265968,0.15795285,3245.0,3244.8,0.21582]
[1736677265969,3.2078,3244.9,3244.8,0.21582]
[1736677266371,3.2078,3244.9,3244.3,1.46405873]
[1736677266575,0.21583,3244.7,3244.5,0.21584]
[1736677266772,0.21584,3244.5,3244.4,0.21585]
[1736677267278,3.2078,3244.5,3244.4,0.21585]
[1736677267577,3.2078,3244.5,3244.3,1.02675873]
[1736677267780,3.42365,3244.5,3244.4,0.21585]
[1736677267981,3.2078,3244.5,3244.4,0.21585]
[1736677268875,3.2078,3244.5,3244.3,1.02675873]
[1736677269072,3.42365,3244.5,3244.3,1.24260873]
[1736677269777,3.2078,3244.5,3244.3,1.02675873]
[1736677269978,0.21586,3244.4,3244.2,0.21586]
[1736677270683,0.21586,3244.4,3244.1,1.48035873]
[1736677270882,0.21586,3244.4,3244.2,0.21586]
[1736677272477,3.35865235,3244.5,3244.1,1.48035873]
[1736677272883,1.02675873,3244.4,3244.1,0.4536]
[1736677273179,3.35865235,3244.5,3244.2,0.21586]
[1736677273377,0.21586,3244.3,3244.2,0.21586]
[1736677273780,0.21586,3244.3,3244.1,0.4536]
[1736677273971,0.21586,3244.2,3244.1,1.69622873]
[1736677274176,0.21586,3244.3,3244.1,1.69622873]
[1736677274882,1.02675873,3244.4,3244.1,1.48035873]
[1736677275073,0.21586,3244.3,3244.1,1.69622873]
[1736677275272,1.02675873,3244.4,3244.1,1.48035873]
[1736677275477,0.21586,3244.3,3244.1,1.69622873]
[1736677275778,1.02675873,3244.2,3243.3,7.24889426]
[1736677276082,1.02675873,3243.8,3243.6,0.2159]
[1736677276388,0.2159,3243.7,3243.5,0.21591]
[1736677276780,1.02675873,3243.8,3243.4,6.30335004]
[1736677276982,0.2159,3243.6,3243.4,5.49250131]
[1736677277181,0.4509,3243.5,3243.4,5.49250131]
[1736677277382,0.4509,3243.5,3243.4,0.65491]
[1736677277979,0.4509,3243.5,3243.3,0.24557382]
[1736677278181,0.66681,3243.5,3243.3,0.21592]
[1736677278387,1.69356873,3243.5,3243.3,0.21592]
[1736677278876,1.69356873,3243.5,3243.2,1.24268873]
[1736677279192,1.47765873,3243.5,3243.2,1.24268873]
[1736677279391,0.21592,3243.4,3243.2,0.21593]
[1736677279684,0.4509,3243.5,3243.0,41.7157]
[1736677279881,0.66681,3243.5,3243.3,0.21592]
[1736677280385,0.4509,3243.5,3243.0,41.7157]
[1736677280686,0.4509,3243.5,3243.0,41.95867555]
[1736677280881,3.2078,3243.9,3243.8,0.21589]
[1736677281080,0.21586,3244.3,3244.1,0.21587]
[1736677281689,0.21586,3244.3,3244.2,40.8]
[1736677282090,0.21586,3244.3,3243.7,2.17124089]
[1736677282290,0.21586,3244.3,3244.2,0.21586]
[1736677283379,0.21586,3244.3,3244.1,0.21587]
[1736677283595,0.21586,3244.3,3243.9,0.21588]
[1736677283887,0.21586,3244.3,3243.8,40.8]
[1736677284088,0.21586,3244.3,3244.2,0.21586]
[1736677284986,4.37425,3244.4,3244.3,0.21586]
[1736677285893,4.37425,3244.4,3244.2,0.21586]
[1736677285894,0.21586,3244.3,3244.2,0.21586]
[1736677287391,0.21587,3244.2,3244.1,0.21587]
[1736677288388,4.30937512,3244.4,3243.9,0.21588]
[1736677288587,0.68408,3244.1,3243.9,0.21588]
[1736677288888,0.68408,3244.1,3244.0,0.21588]
[1736677291192,3.89188,3244.1,3244.0,0.21588]
[1736677293389,0.21588,3244.0,3243.9,0.21588]
[1736677294794,0.21589,3243.9,3243.8,0.21589]
[1736677294999,0.69419,3243.9,3243.8,0.21589]
[1736677295892,0.4783,3243.9,3243.6,0.8886]
[1736677296109,0.21589,3243.8,3243.7,0.21589]
[1736677296291,0.21589,3243.8,3243.6,1.1045]
[1736677296492,0.4783,3243.9,3243.6,1.1045]
[1736677296798,0.21589,3243.8,3243.6,1.1045]
[1736677297002,0.2159,3243.7,3243.6,1.1045]
[1736677297298,0.4783,3243.9,3243.6,1.1045]
[1736677297497,0.21589,3243.8,3243.6,1.1045]
[1736677301001,0.2159,3243.7,3243.6,0.8886]
[1736677301199,0.2159,3243.7,3243.5,2.17124089]
[1736677301200,0.2159,3243.6,3243.5,2.17124089]
[1736677301502,0.2159,3243.6,3243.5,1.02746005]
[1736677303202,0.2159,3243.6,3243.5,1.24337005]
[1736677303402,0.2159,3243.6,3243.5,1.02746005]
[1736677305095,0.2159,3243.6,3243.5,1.24337005]
[1736677306202,0.2159,3243.6,3243.5,1.02746005]
[1736677306905,0.2159,3243.6,3243.5,1.24337005]
[1736677308206,0.21592,3243.4,3243.3,1.49660725]
[1736677308404,0.21592,3243.4,3243.3,1.68938005]
[1736677308598,0.21591,3243.5,3243.3,1.68938005]
[1736677309301,3.6445,3243.7,3243.3,1.47346005]
[1736677309500,3.6445,3243.7,3243.3,1.68938005]
[1736677309704,0.21591,3243.5,3243.3,1.68938005]
[1736677310301,0.21591,3243.5,3243.3,1.93311308]
[1736677310500,3.6445,3243.7,3243.3,1.71719308]
[1736677310701,0.21592,3243.4,3243.3,1.93311308]
[1736677311004,0.21591,3243.5,3243.3,1.93311308]
[1736677312006,0.21591,3243.5,3243.3,1.71719308]
[1736677312207,0.21591,3243.5,3243.4,0.21592]
[1736677313008,3.6445,3243.7,3242.9,5.18247312]
[1736677313303,0.21593,3243.2,3243.1,1.02746005]
[1736677313700,0.67243,3243.2,3243.1,1.02746005]
[1736677316314,1.63591753,3243.2,3242.7,0.21596]
[1736677316509,0.465,3243.1,3242.7,1.24342005]
[1736677317008,0.21595,3242.9,3242.7,1.24342005]
[1736677317207,0.4625,3242.8,3242.7,1.24342005]
[1736677317409,1.15406,3242.8,3242.6,5.53395131]
[1736677317603,1.15406,3242.8,3242.6,6.56141136]
[1736677318004,1.15406,3242.8,3242.6,1.72382005]
[1736677319607,0.9381,3242.8,3242.6,1.50786005]
[1736677319806,0.21596,3242.7,3242.6,1.50786005]
[1736677320311,0.21598,3242.5,3242.4,0.21598]
[1736677320504,0.9381,3242.8,3242.5,1.02746005]
[1736677320807,3.2078,3242.9,3242.8,0.21596]
[1736677321210,3.2078,3242.9,3242.8,1.15596]
[1736677323208,3.42375,3242.9,3242.8,0.94]
[1736677323413,3.87115,3242.9,3242.8,0.94]
[1736677323613,3.87115,3242.9,3242.8,0.21596]
[1736677325214,3.6552,3242.9,3242.7,1.02746005]
[1736677325408,0.21596,3242.8,3242.7,1.24342005]
[1736677326415,0.21596,3242.8,3242.7,1.02746005]
[1736677327309,1.02746005,3242.8,3242.1,4.83759131]
[1736677327616,0.216,3242.2,3242.1,4.83759131]
[1736677328120,1.6107,3242.2,3242.1,4.83759131]
[1736677328715,1.6107,3242.2,3241.5,1.02746005]
[1736677328716,1.3947,3242.2,3241.5,1.02746005]
[1736677328915,0.21604,3241.6,3241.5,42.04350005]
[1736677329220,0.21603,3241.7,3241.5,41.82746005]
[1736677329414,0.4591,3241.6,3241.5,0.21604]
[1736677329822,0.45812999,3241.6,3241.5,0.21604]
[1736677330421,0.45812999,3241.6,3241.4,0.21604]
[1736677330622,0.92952999,3241.6,3241.3,40.8]
[1736677330922,0.92952999,3241.6,3241.5,0.21604]
[1736677331113,0.92952999,3241.6,3241.4,0.21605]
[1736677331514,0.92952999,3241.6,3241.5,0.21604]
[1736677332321,0.92952999,3241.6,3241.3,40.8]
[1736677332519,0.92952999,3241.6,3241.4,0.21605]
[1736677333220,0.92952999,3241.6,3241.5,0.21604]
[1736677334730,0.92952999,3241.6,3241.3,40.8]
[1736677335021,1.14556999,3241.6,3241.4,0.21605]
[1736677335824,1.14556999,3241.6,3241.3,41.01605]
[1736677337731,0.92952999,3241.6,3241.3,41.01605]
[1736677338030,0.21605,3241.5,3241.3,41.01605]
[1736677338226,0.92952999,3241.6,3241.3,41.01605]
[1736677338428,0.21604,3241.5,3241.3,41.01605]
[1736677338835,0.21604,3241.5,3241.3,41.01606]
[1736677342941,0.21606,3241.3,3241.1,0.21607]
[1736677343139,0.21606,3241.3,3241.0,2.41898057]
[1736677343140,0.21605,3241.4,3241.2,0.21606]
[1736677344433,4.13732999,3241.6,3241.0,41.04572221]
[1736677344628,0.21605,3241.5,3241.0,41.04572221]
[1736677344833,0.21605,3241.5,3241.2,0.21606]
[1736677345239,4.13732999,3241.6,3240.6,0.2161]
[1736677345442,3.2078,3241.1,3240.4,3.2078]
[1736677345740,1.364,3241.0,3240.7,0.21609]
[1736677345939,1.58008,3241.0,3240.7,0.21609]
[1736677346643,1.364,3241.0,3240.7,0.21609]
[1736677347141,1.58008,3241.0,3240.7,0.21609]
[1736677347735,1.364,3241.0,3240.7,0.21609]
[1736677347939,1.58008,3241.0,3240.7,0.21609]
[1736677349243,0.21608,3240.9,3240.7,0.21609]
[1736677349637,1.364,3241.0,3240.4,46.18105836]
[1736677349838,0.21609,3240.9,3240.6,0.2161]
[1736677350039,0.21609,3240.9,3240.7,0.2161]
[1736677350241,0.21609,3240.8,3240.6,0.2161]
[1736677350544,0.2161,3240.7,3240.4,44.22391]
[1736677350838,0.2161,3240.6,3240.4,44.0078]
[1736677351044,0.21611,3240.5,3240.4,44.0078]
[1736677351249,0.69011,3240.5,3240.4,40.8]
[1736677351447,0.69011,3240.5,3240.2,1.10883]
[1736677351638,0.21612,3240.3,3240.2,0.8927]
[1736677351840,0.68102,3240.4,3240.2,41.90883]
[1736677352247,0.4649,3240.4,3240.2,41.6927]
[1736677352447,0.21612,3240.3,3240.2,0.8927]
[1736677352745,0.4649,3240.4,3240.2,0.8927]
[1736677352946,0.4649,3240.4,3240.0,41.01614]
[1736677352947,0.21613,3240.3,3240.0,41.01614]
[1736677353149,0.21613,3240.3,3240.0,41.2347]
[1736677353451,0.21613,3240.3,3240.1,0.21614]
[1736677354143,0.21612,3240.3,3240.1,0.21614]
[1736677354550,0.21613,3240.3,3240.1,0.21614]
[1736677354942,0.21613,3240.3,3240.0,0.4347]
[1736677355343,0.21613,3240.3,3240.1,0.21613]
[1736677355543,0.4649,3240.4,3240.0,0.4347]
[1736677355942,0.474,3240.5,3240.4,0.21612]
[1736677356340,0.474,3240.5,3240.0,0.4347]
[1736677356542,0.21613,3240.3,3240.1,0.21614]
[1736677356946,0.67982,3240.4,3240.2,0.21613]
[1736677357152,0.21612,3240.3,3240.2,0.21613]
[1736677357451,0.4637,3240.4,3240.0,0.4391]
[1736677357641,0.67982,3240.4,3240.2,0.21613]
[1736677359053,0.4637,3240.4,3240.1,0.21613]
[1736677359448,0.21613,3240.3,3240.1,0.21613]
[1736677359751,0.21613,3240.2,3240.1,0.21613]
[1736677360146,0.21613,3240.2,3240.0,0.65524]
[1736677360346,0.4637,3240.4,3240.0,0.65524]
[1736677360546,0.21614,3240.2,3240.0,0.65524]
[1736677361047,0.21614,3240.2,3240.1,0.21614]
[1736677361349,0.21614,3240.2,3240.0,0.4391]
[1736677361952,0.21614,3240.2,3240.1,0.21614]
[1736677362147,0.4413,3240.3,3240.0,0.65524]
[1736677362346,0.21613,3240.2,3240.0,41.45524]
[1736677362746,0.21613,3240.2,3240.0,0.65524]
[1736677362947,0.21613,3240.2,3240.0,0.4391]
[1736677363148,0.21613,3240.2,3240.1,0.21614]
[1736677363349,0.21614,3240.1,3240.0,0.65524]
[1736677363952,0.21614,3240.1,3239.9,3.85895]
[1736677364156,0.9183,3240.0,3239.9,3.85895]
[1736677364850,0.4653,3240.0,3239.9,3.85895]
[1736677365056,0.21614,3240.1,3240.0,0.21614]
[1736677365257,0.21614,3240.1,3239.9,3.85895]
[1736677365651,0.21614,3240.1,3240.0,0.21614]
[1736677365852,0.21614,3240.1,3239.9,3.85895]
[1736677366456,0.21614,3240.1,3239.9,3.42395]
[1736677366657,0.21614,3240.1,3239.9,3.2078]
[1736677366859,0.21614,3240.1,3239.9,3.42395]
[1736677367257,0.21614,3240.1,3239.9,3.2078]
[1736677367458,0.4413,3240.3,3239.9,3.2078]
[1736677367658,0.21614,3240.0,3239.9,3.2078]
[1736677368458,0.21614,3240.0,3239.9,3.42395]
[1736677368958,0.9226,3240.2,3239.9,3.2078]
[1736677369162,1.13874,3240.2,3240.0,0.21614]
[1736677369657,0.21614,3240.1,3240.0,0.21614]
[1736677370457,0.21614,3240.0,3239.9,0.21615]
[1736677370655,0.21614,3240.0,3239.8,0.67526]
[1736677370852,0.21616,3239.8,3239.7,3.2078]
[1736677372653,0.21616,3239.7,3239.6,0.4445]
[1736677372960,0.66886,3239.7,3239.6,0.4445]
[1736677374461,0.4527,3239.7,3239.4,3.2078]
[1736677374653,0.8826,3239.6,3239.4,3.6806]
[1736677375056,1.09877,3239.6,3239.5,0.21618]
[1736677375462,0.21618,3239.5,3239.4,3.6806]
[1736677375762,1.09877,3239.6,3239.4,3.89678]
[1736677376353,0.21618,3239.5,3239.4,3.6806]
[1736677377159,1.09877,3239.6,3239.4,3.89678]
[1736677377459,1.09877,3239.6,3239.5,0.21618]
[1736677377658,0.8826,3239.6,3239.4,3.6806]
[1736677377858,0.21618,3239.5,3239.4,3.6806]
[1736677378159,1.09877,3239.6,3239.4,3.89678]
[1736677378368,0.8826,3239.6,3239.5,0.21618]
[1736677378760,0.8826,3239.6,3239.4,3.6806]
[1736677378954,0.8826,3239.6,3239.4,3.89678]
[1736677379156,1.09877,3239.6,3239.4,3.89678]
[1736677379361,0.8826,3239.6,3239.4,3.6806]
[1736677379669,1.09877,3239.6,3239.5,0.21618]
[1736677379969,0.8826,3239.6,3239.5,0.21618]
[1736677380267,1.09877,3239.6,3239.5,0.21618]
[1736677380667,0.66887,3239.7,3239.4,3.6806]
[1736677380866,0.21617,3239.6,3239.5,0.21618]
[1736677381167,0.66887,3239.7,3239.6,0.21617]
[1736677381362,0.66887,3239.7,3239.4,3.6806]
[1736677381569,0.66887,3239.7,3239.6,0.21617]
[1736677382371,0.4527,3239.7,3239.6,0.21617]
[1736677382569,0.66886,3239.7,3239.6,0.21617]
[1736677383568,0.891,3240.0,3239.4,4.1239]
[1736677383764,0.891,3240.0,3239.9,0.21615]
[1736677384871,1.10714,3240.0,3239.9,0.21615]
[1736677386070,0.21616,3239.9,3239.8,0.21615]
[1736677387475,1.10715,3240.0,3239.9,0.21615]
[1736677389666,3.2078,3240.1,3239.9,1.02994471]
[1736677389872,3.2078,3240.1,3240.0,0.21614]
[1736677390068,3.2078,3240.1,3240.0,1.10404]
[1736677390370,3.42394,3240.1,3240.0,1.10404]
[1736677390766,3.2078,3240.1,3240.0,1.10404]
[1736677391159,3.42394,3240.1,3240.0,1.10404]
[1736677391366,3.2078,3240.1,3240.0,1.10404]
[1736677391971,3.42394,3240.1,3240.0,1.10404]
[1736677393672,3.42394,3240.1,3240.0,0.65794]
[1736677394071,3.42394,3240.1,3240.0,0.4418]
[1736677395078,3.42394,3240.1,3240.0,0.65794]
[1736677395877,3.42394,3240.1,3240.0,0.4418]
[1736677396175,3.42394,3240.1,3240.0,0.65794]
[1736677396475,3.42394,3240.1,3240.0,0.4418]
[1736677398777,3.42394,3240.1,3239.7,0.4736]
[1736677398778,3.2078,3240.1,3239.7,0.4736]
[1736677398978,3.42394,3240.1,3240.0,0.21614]
[1736677399777,3.2078,3240.1,3239.9,0.4491]
[1736677399970,3.2078,3240.1,3239.1,50.46519235]
[1736677399971,3.2078,3240.1,3239.4,8.04539131]
[1736677400172,0.21618,3239.5,3239.4,8.50069131]
[1736677400474,0.21618,3239.5,3239.4,9.16597131]
[1736677401074,0.21618,3239.5,3239.4,8.94979131]
[1736677401477,0.21618,3239.5,3239.4,4.1122]
[1736677401676,0.21618,3239.5,3239.4,4.32838]
[1736677401875,1.46097,3240.0,3239.4,4.32838]
[1736677402080,0.21617,3239.6,3239.4,4.32838]
[1736677402281,0.4774,3239.5,3239.4,4.1122]
[1736677402475,0.69358,3239.5,3239.4,4.1122]
[1736677403469,0.69358,3239.5,3239.4,4.32838]
[1736677404774,0.69358,3239.5,3239.4,1.12058]
[1736677406185,0.69358,3239.5,3239.4,0.9044]
[1736677407789,0.69358,3239.5,3239.4,1.12058]
[1736677407990,0.69358,3239.5,3239.2,4.83759131]
[1736677407991,0.4774,3239.5,3239.2,4.83759131]
[1736677408288,0.4721,3239.4,3239.3,0.21619]
[1736677409491,0.68829,3239.4,3239.1,10.66937673]
[1736677410196,0.68829,3239.4,3239.2,0.2162]
[1736677410694,0.4606,3239.3,3239.2,0.2162]
[1736677411092,0.67679,3239.3,3239.2,0.2162]
[1736677411292,0.4606,3239.3,3239.2,0.2162]
[1736677413293,0.4728,3239.9,3239.2,1.57035179]
[1736677413591,0.4728,3239.9,3239.8,1.24601179]
[1736677414490,0.907,3240.0,3239.9,0.21615]
[1736677414995,0.907,3240.0,3239.9,0.69845]
[1736677415988,0.4644,3240.2,3240.1,0.21614]
[1736677417694,0.68053,3240.2,3240.1,0.21614]
[1736677418797,0.4644,3240.2,3239.9,0.9556]
[1736677418999,0.68204,3240.1,3240.0,0.21614]
[1736677419795,0.21615,3239.9,3239.8,0.21616]
[1736677420991,0.4369,3240.0,3239.6,0.4536]
[1736677421190,0.65316,3239.8,3239.7,0.21616]
[1736677421387,0.437,3239.8,3239.4,4.83759131]
[1736677421598,0.21618,3239.5,3239.4,5.05377131]
[1736677422193,0.21618,3239.5,3239.4,4.83759131]
[1736677422891,0.21618,3239.5,3239.3,0.66979]
[1736677422892,0.4446,3239.5,3239.3,0.66979]
[1736677423200,0.67168,3239.4,3239.3,0.66979]
[1736677424505,0.4555,3239.4,3239.3,0.66979]
[1736677426603,3.2078,3239.9,3239.7,0.21616]
[1736677426802,3.42395,3239.9,3239.7,0.21616]
[1736677427200,3.42395,3239.9,3239.8,0.47]
[1736677427605,3.42395,3239.9,3239.8,0.68616]
[1736677427906,3.42395,3239.9,3239.8,0.47]
[1736677428106,3.42395,3239.9,3239.8,0.68616]
[1736677428706,3.42395,3239.9,3239.8,0.47]
[1736677429210,3.42395,3239.9,3239.8,0.68616]
[1736677429408,0.21616,3239.8,3239.7,0.21616]
[1736677431207,0.21617,3239.6,3239.5,0.21617]
[1736677432614,3.2078,3239.9,3239.4,0.4427]
[1736677432811,0.67018,3239.5,3239.4,0.4427]
[1736677434702,0.2162,3239.3,3239.2,0.2162]
[1736677439511,1.13299,3239.4,3239.3,0.21619]
[1736677440107,0.21619,3239.3,3239.2,0.21619]
[1736677445115,3.2078,3239.6,3239.1,0.451]